Workbook

Sheet CIC
B1: 信号源生成 | F1: 積分 | J1: 間引き | K1: 微分 | O1: 出力
B2: 512 | C2: 55 | D2: 23 | E2: 8bit | F2: Int1 | G2: Int2 | H2: Int2 | I2: Int2 | J2: 1/R | K2: Comb1 | L2: Comb2 | M2: Comb3 | N2: Comb4 | P2: Result
A3: 0 | B3: =10*SIN(2*PI()*$A3/B$2) -> 0 | C3: =20*SIN(2*PI()*$A3/C$2) -> 0 | D3: =13*SIN(2*PI()*$A3/D$2) -> 0 | E3: =INT(B3+C3+D3) -> 0 | F3: =E3 -> 0 | G3: =F3 -> 0 | H3: =G3 -> 0 | I3: =H3 -> 0 | J3: 32 | O3: 0 | P3: =N3 -> 0
A4: 1 | B4: =100*SIN(2*PI()*$A4/B$2) -> 1.227153829 | C4: =20*SIN(2*PI()*$A4/C$2) -> 2.279828198 | D4: =13*SIN(2*PI()*$A4/D$2) -> 3.507358025 | E4: =INT(B4+C4+D4) -> 7 | F4: =E4+F3 -> 7 | G4: =F4+G3 -> 7 | H4: =G4+H3 -> 7 | I4: =H4+I3 -> 7 | O4: 1 | P4: =N4 -> 0
A5: 2 | B5: =100*SIN(2*PI()*$A5/B$2) -> 2.454122852 | C5: 4.529935349 | D5: 6.75459135 | E5: 13 | F5: =E5+F4 -> 20 | G5: 27 | H5: 34 | I5: 41 | O5: 2 | P5: 0
A6: 3 | B6: 3.680722294 | C6: 6.720987864 | D6: 9.500867536 | E6: 19 | F6: 39 | G6: 66 | H6: 100 | I6: 141 | O6: 3 | P6: 0
A7: 4 | B7: 4.906767433 | C7: 8.824422025 | D7: 11.54250784 | E7: 25 | F7: 64 | G7: 130 | H7: 0 | I7: 141 | J7: 1324597 | O7: 4 | P7: 0
A8: 5 | B8: 6.13207363 | C8: 10.81281635 | D8: 12.72809314 | E8: 29 | F8: 93 | G8: 223 | H8: 223 | I8: 364 | J8: 22005981 | K8: =J8-J7 -> 20681384 | O8: 5 | P8: 0
A9: 6 | B9: 7.35645636 | C9: 12.66024908 | D9: 12.969694 | E9: 32 | F9: 125 | G9: 348 | H9: =G9+H8 -> 571 | I9: =H9+I8 -> 935 | J9: 120615756 | K9: =J9-J8 -> 98609775 | L9: =K9-K8 -> 77928391 | O9: 6 | P9: 0
A10: 7 | B10: 8.579731234 | C10: 14.3426361 | D10: 12.24939199 | E10: 35 | F10: 160 | G10: 508 | H10: 1079 | I10: 2014 | J10: 430741453 | K10: 310125697 | L10: 211515922 | M10: =L10-L9 -> 133587531 | O10: 7 | P10: 0
A11: 8 | B11: 9.801714033 | C11: 15.83804492 | D11: 10.62060861 | E11: 36 | F11: 196 | G11: 704 | H11: 1783 | I11: 3797 | J11: 1179201318 | K11: 748459865 | L11: 438334168 | M11: =L11-L10 -> 226818246 | N11: =M11-M10 -> 93230715 | O11: 8 | P11: 93230715
A12: 9 | B12: 11.02222073 | C12: 17.12698061 | D12: 8.204143276 | E12: 36 | F12: 232 | G12: 936 | H12: 2719 | I12: 6516 | J12: 2695730340 | K12: 1516529022 | L12: 768069157 | M12: 329734989 | N12: 102916743 | O12: 9 | P12: 102916743
A13: 10 | B13: 12.24106752 | C13: 18.19263991 | D13: 5.179214168 | E13: 35 | F13: 267 | G13: 1203 | H13: 3922 | I13: 10438 | J13: 5402501877 | K13: 2706771537 | L13: 1190242515 | M13: 422173358 | N13: 92438369 | O13: 10 | P13: 92438369
A14: 11 | B14: 13.45807085 | C14: 19.02113033 | D14: 1.770166438 | E14: 34 | F14: 301 | G14: 1504 | H14: =G14+H13 -> 5426 | I14: 15864 | J14: 9791428271 | K14: 4388926394 | L14: 1682154857 | M14: 491912342 | N14: 69738984 | O14: 11 | P14: 69738984
A15: 12 | B15: 14.67304745 | C15: 19.60165122 | D15: -1.770166438 | E15: 32 | F15: 333 | G15: 1837 | H15: 7263 | I15: 23127 | J15: 16391717185 | K15: 6600288914 | L15: 2211362520 | M15: 529207663 | N15: 37295321 | O15: 12 | P15: 37295321
A16: 13 | B16: 15.88581433 | C16: 19.92663462 | D16: -5.179214168 | E16: 30 | F16: 363 | G16: 2200 | H16: 9463 | I16: 32590 | J16: 25728022346 | K16: 9336305161 | L16: 2736016247 | M16: 524653727 | N16: -4553936 | O16: 13 | P16: -4553936
A17: 14 | B17: 17.09618888 | C17: 19.99184386 | D17: -8.204143276 | E17: 28 | F17: 391 | G17: 2591 | H17: 12054 | I17: 44644 | J17: 38284648542 | K17: 12556626196 | L17: =K17-K16 -> 3220321035 | M17: 484304788 | N17: -40348939 | O17: 14 | P17: -40348939
A18: 15 | B18: 18.3039888 | C18: 19.79642884 | D18: -10.62060861 | E18: 27 | F18: 418 | G18: 3009 | H18: 15063 | I18: 59707 | J18: 54470000136 | K18: 16185351594 | L18: 3628725398 | M18: 408404363 | N18: -75900425 | O18: 15 | P18: -75900425
A19: 16 | B19: 19.5090322 | C19: 19.34293709 | D19: -12.24939199 | E19: 26 | F19: 444 | G19: 3453 | H19: 18516 | I19: 78223 | J19: 74597283865 | K19: 20127283729 | L19: 3941932135 | M19: 313206737 | N19: -95197626 | O19: 16 | P19: -95197626
A20: 17 | B20: 20.71113762 | C20: 18.63728058 | D20: -12.969694 | E20: 26 | F20: 470 | G20: 3923 | H20: 22439 | I20: 100662 | J20: 98877207330 | K20: 24279923465 | L20: 4152639736 | M20: 210707601 | N20: -102499136 | O20: 17 | P20: -102499136
A21: 18 | B21: 21.91012402 | C21: 17.68865862 | D21: -12.72809314 | E21: 26 | F21: 496 | G21: 4419 | H21: 26858 | I21: 127520 | J21: 127425632770 | K21: 28548425440 | L21: 4268501975 | M21: 115862239 | N21: -94845362 | O21: 18 | P21: -94845362
A22: 19 | B22: 23.10581083 | C22: 16.50943794 | D22: -11.54250784 | E22: 28 | F22: 524 | G22: 4943 | H22: 31801 | I22: 159321 | J22: 160288914760 | K22: 32863281990 | L22: 4314856550 | M22: 46354575 | N22: -69507664 | O22: 19 | P22: -69507664
A23: 20 | B23: 24.29801799 | C23: 15.11499149 | D23: -9.500867536 | E23: 29 | F23: 553 | G23: 5496 | H23: 37297 | I23: 196618 | J23: 197474476820 | K23: 37185562060 | L23: 4322280070 | M23: 7423520 | N23: -38931055 | O23: 20 | P23: -38931055
A24: 21 | B24: 25.48656596 | C24: 13.52349801 | D24: -6.75459135 | E24: 32 | F24: 585 | G24: 6081 | H24: 43378 | I24: 239996 | J24: 238993111995 | K24: 41518635175 | L24: 4333073115 | M24: 10793045 | N24: 3369525 | O24: 21 | P24: 3369525
A25: 22 | B25: 26.67127575 | C25: 11.75570505 | D25: -3.507358025 | E25: 34 | F25: 619 | G25: 6700 | H25: 50078 | I25: 290074 | J25: 284895724879 | K25: 45902612884 | L25: 4383977709 | M25: 50904594 | N25: 40111549 | O25: 22 | P25: 40111549
A26: 23 | B26: 27.85196894 | C26: 9.834658493 | D26: -3.185385983e-15 | E26: 37 | F26: 656 | G26: 7356 | H26: 57434 | I26: 347508 | J26: 335306686112 | K26: 50410961233 | L26: 4508348349 | M26: 124370640 | N26: 73466046 | O26: 23 | P26: 73466046
A27: 24 | B27: 29.02846773 | C27: 7.785402126 | D27: 3.507358025 | E27: 40 | F27: 696 | G27: 8052 | H27: 65486 | I27: 412994 | J27: 390446124661 | K27: 55139438549 | L27: 4728477316 | M27: 220128967 | N27: 95758327 | O27: 24 | P27: 95758327
A28: 25 | B28: 30.20059493 | C28: 5.634651137 | D28: 6.75459135 | E28: 42 | F28: 738 | G28: 8790 | H28: 74276 | I28: 487270 | J28: 450634345289 | K28: 60188220628 | L28: 5048782079 | M28: 320304763 | N28: 100175796 | O28: 25 | P28: 100175796
A29: 26 | B29: 31.36817404 | C29: 3.410443853 | D29: 9.500867536 | E29: 44 | F29: 782 | G29: 9572 | H29: 83848 | I29: 571118 | J29: 516286237955 | K29: 65651892666 | L29: 5463672038 | M29: 414889959 | N29: 94585196 | O29: 26 | P29: 94585196
A30: 27 | B30: 32.53102922 | C30: 1.141776217 | D30: 11.54250784 | E30: 45 | F30: 827 | G30: 10399 | H30: 94247 | I30: 665365 | J30: 587885229371 | K30: 71598991416 | L30: 5947098750 | M30: 483426712 | N30: 68536753 | O30: 27 | P30: 68536753
A31: 28 | B31: 33.68898534 | C31: -1.141776217 | D31: 12.72809314 | E31: 45 | F31: 872 | G31: 11271 | H31: 105518 | I31: 770883 | J31: 665951859694 | K31: 78066630323 | L31: 6467638907 | M31: 520540157 | N31: 37113445 | O31: 28 | P31: 37113445
A32: 29 | B32: 34.84186802 | C32: -3.410443853 | D32: 12.969694 | E32: 44 | F32: 916 | G32: 12187 | H32: 117705 | I32: 888588 | J32: 751003651020 | K32: 85051791326 | L32: 6985161003 | M32: 517522096 | N32: -3018061 | O32: 29 | P32: -3018061
A33: 30 | B33: 35.98950365 | C33: -5.634651137 | D33: 12.24939199 | E33: 42 | F33: 958 | G33: 13145 | H33: 130850 | I33: 1019438 | J33: 843515341188 | K33: 92511690168 | L33: 7459898842 | M33: 474737839 | N33: -42784257 | O33: 30 | P33: -42784257
A34: 31 | B34: 37.1317194 | C34: -7.785402126 | D34: 10.62060861 | E34: 39 | F34: 997 | G34: 14142 | H34: 144992 | I34: 1164430 | J34: 943888587150 | K34: 100373245962 | L34: 7861555794 | M34: 401656952 | N34: -73080887 | O34: 31 | P34: -73080887
A35: 32 | B35: 38.26834324 | C35: -9.834658493 | D35: 8.204143276 | E35: 36 | F35: 1033 | G35: 15175 | H35: 160167 | I35: 1324597 | J35: 1052427549437 | K35: 108538962287 | L35: 8165716325 | M35: 304160531 | N35: -97496421 | O35: 32 | P35: -97496421
A36: 33 | B36: 39.39920401 | C36: -11.75570505 | D36: 5.179214168 | E36: 32 | F36: 1065 | G36: 16240 | H36: 176407 | I36: 1501004 | J36: 1169335169809 | K36: 116907620372 | L36: 8368658085 | M36: 202941760 | N36: -101218771 | O36: 33 | P36: -101218771
A37: 34 | B37: 40.5241314 | C37: -13.52349801 | D37: 1.770166438 | E37: 28 | F37: 1093 | G37: 17333 | H37: 193740 | I37: 1694744 | J37: 1294719531805 | K37: 125384361996 | L37: 8476741624 | M37: 108083539 | N37: -94858221 | O37: 34 | P37: -94858221
A38: 35 | B38: 41.64295601 | C38: -15.11499149 | D38: -1.770166438 | E38: 24 | F38: 1117 | G38: 18450 | H38: 212190 | I38: 1906934 | J38: 1428617746645 | K38: 133898214840 | L38: 8513852844 | M38: 37111220 | N38: -70972319 | O38: 35 | P38: -70972319
A39: 36 | B39: 42.75550934 | C39: -16.50943794 | D39: -5.179214168 | E39: 21 | F39: 1138 | G39: 19588 | H39: 231778 | I39: 2138712 | J39: 1571030380820 | K39: 142412634175 | L39: 8514419335 | M39: 566491 | N39: -36544729 | O39: 36 | P39: -36544729
A40: 37 | B40: 43.86162385 | C40: -17.68865862 | D40: -8.204143276 | E40: 17 | F40: 1155 | G40: 20743 | H40: 252521 | I40: 2391233 | J40: 1721958618774 | K40: 150928237954 | L40: 8515603779 | M40: 1184444 | N40: 617953 | O40: 37 | P40: 617953
A41: 38 | B41: 44.96113297 | C41: -18.63728058 | D41: -10.62060861 | E41: 15 | F41: 1170 | G41: 21913 | H41: 274434 | I41: 2665667 | J41: 1881446172311 | K41: 159487553537 | L41: 8559315583 | M41: 43711804 | N41: 42527360 | O41: 38 | P41: 42527360
A42: 39 | B42: 46.0538711 | C42: -19.34293709 | D42: -12.24939199 | E42: 14 | F42: 1184 | G42: 23097 | H42: 297531 | I42: 2963198 | J42: 2049608743069 | K42: 168162570758 | L42: 8675017221 | M42: 115701638 | N42: 71989834 | O42: 39 | P42: 71989834
A43: 40 | B43: 47.13967368 | C43: -19.79642884 | D43: -12.969694 | E43: 14 | F43: 1198 | G43: 24295 | H43: 321826 | I43: 3285024 | J43: 2226657757735 | K43: 177049014666 | L43: 8886443908 | M43: 211426687 | N43: 95725049 | O43: 40 | P43: 95725049
A44: 41 | B44: 48.21837721 | C44: -19.99184386 | D44: -12.72809314 | E44: 15 | F44: 1213 | G44: 25508 | H44: 347334 | I44: 3632358 | J44: 2412906078446 | K44: 186248320711 | L44: 9199306045 | M44: 312862137 | N44: 101435450 | O44: 41 | P44: 101435450
A45: 42 | B45: 49.28981922 | C45: -19.92663462 | D45: -11.54250784 | E45: 17 | F45: 1230 | G45: 26738 | H45: 374072 | I45: 4006430 | J45: 2608758800963 | K45: 195852722517 | L45: 9604401806 | M45: 405095761 | N45: 92233624 | O45: 42 | P45: 92233624
A46: 43 | B46: 50.35383837 | C46: -19.60165122 | D46: -9.500867536 | E46: 21 | F46: 1251 | G46: 27989 | H46: 402061 | I46: 4408491 | J46: 2814692292001 | K46: 205933491038 | L46: 10080768521 | M46: 476366715 | N46: 71270954 | O46: 43 | P46: 71270954
A47: 44 | B47: 51.41027442 | C47: -19.02113033 | D47: -6.75459135 | E47: 25 | F47: 1276 | G47: 29265 | H47: 431326 | I47: 4839817 | J47: 3031217546099 | K47: 216525254098 | L47: 10591763060 | M47: 510994539 | N47: 34627824 | O47: 44 | P47: 34627824
A48: 45 | B48: 52.45896827 | C48: -18.19263991 | D48: -3.507358025 | E48: 30 | F48: 1306 | G48: 30571 | H48: 461897 | I48: 5301714 | J48: 3258844071831 | K48: 227626525732 | L48: 11101271634 | M48: 509508574 | N48: -1485965 | O48: 45 | P48: -1485965
A49: 46 | B49: 53.49976199 | C49: -17.12698061 | D49: -6.370771966e-15 | E49: 36 | F49: 1342 | G49: 31913 | H49: 493810 | I49: 5795524 | J49: 3498038476904 | K49: 239194405073 | L49: 11567879341 | M49: 466607707 | N49: -42900867 | O49: 46 | P49: -42900867
A50: 47 | B50: 54.53249884 | C50: -15.83804492 | D50: 3.507358025 | E50: 42 | F50: 1384 | G50: 33297 | H50: 527107 | I50: 6322631 | J50: 3749193126493 | K50: 251154649589 | L50: 11960244516 | M50: 392365175 | N50: -74242532 | O50: 47 | P50: -74242532
A51: 48 | B51: 55.5570233 | C51: -14.3426361 | D51: 6.75459135 | E51: 47 | F51: 1431 | G51: 34728 | H51: 561835 | I51: 6884466 | J51: 4012605074379 | K51: 263411947886 | L51: 12257298297 | M51: 297053781 | N51: -95311394 | O51: 48 | P51: -95311394
A52: 49 | B52: 56.57318108 | C52: -12.66024908 | D52: 9.500867536 | E52: 53 | F52: 1484 | G52: 36212 | H52: 598047 | I52: 7482513 | J52: 4288467429104 | K52: 275862354725 | L52: 12450406839 | M52: 193108542 | N52: -103945239 | O52: 49 | P52: -103945239
A53: 50 | B53: 57.58081914 | C53: -10.81281635 | D53: 11.54250784 | E53: 58 | F53: 1542 | G53: 37754 | H53: 635801 | I53: 8118314 | J53: 4576880884620 | K53: 288413455516 | L53: 12551100791 | M53: 100693952 | N53: -92414590 | O53: 50 | P53: -92414590
A54: 51 | B54: 58.57978575 | C54: -8.824422025 | D54: 12.72809314 | E54: 62 | F54: 1604 | G54: 39358 | H54: 675159 | I54: 8793473 | J54: 4877873562190 | K54: 300992677570 | L54: 12579222054 | M54: 28121263 | N54: -72572689 | O54: 51 | P54: -72572689
A55: 52 | B55: 59.56993045 | C55: -6.720987864 | D55: 12.969694 | E55: 65 | F55: 1669 | G55: 41027 | H55: 716186 | I55: 9509659 | J55: 5191437399791 | K55: 313563837601 | L55: 12571160031 | M55: -8062023 | N55: -36183286 | O55: 52 | P55: -36183286
A56: 53 | B56: 60.55110414 | C56: -4.529935349 | D56: 12.24939199 | E56: 68 | F56: 1737 | G56: 42764 | H56: 758950 | I56: 10268609 | J56: 5517565902550 | K56: 326128502759 | L56: 12564665158 | M56: -6494873 | N56: 1567150 | O56: 53 | P56: 1567150
A57: 54 | B57: 61.52315906 | C57: -2.279828198 | D57: 10.62060861 | E57: 69 | F57: 1806 | G57: 44570 | H57: 803520 | I57: 11072129 | J57: 5856292980804 | K57: 338727078254 | L57: 12598575495 | M57: 33910337 | N57: 40405210 | O57: 54 | P57: 40405210
A58: 55 | B58: 62.48594881 | C58: -4.90059382e-15 | D58: 8.204143276 | E58: 70 | F58: 1876 | G58: 46446 | H58: 849966 | I58: 11922095 | J58: 6207727173880 | K58: 351434193076 | L58: 12707114822 | M58: 108539327 | N58: 74628990 | O58: 55 | P58: 74628990
A59: 56 | B59: 63.43932842 | C59: 2.279828198 | D59: 5.179214168 | E59: 70 | F59: 1946 | G59: 48392 | H59: 898358 | I59: 12820453 | J59: 6572070244765 | K59: 364343070885 | L59: 12908877809 | M59: 201762987 | N59: 93223660 | O59: 56 | P59: 93223660
A60: 57 | B60: 64.38315429 | C60: 4.529935349 | D60: 1.770166438 | E60: 70 | F60: 2016 | G60: 50408 | H60: 948766 | I60: 13769219 | J60: 6949627195714 | K60: 377556950949 | L60: 13213880064 | M60: 305002255 | N60: 103239268 | O60: 57 | P60: 103239268
A61: 58 | B61: 65.3172843 | C61: 6.720987864 | D61: -1.770166438 | E61: 70 | F61: 2086 | G61: 52494 | H61: 1001260 | I61: 14770479 | J61: 7340794732557 | K61: 391167536843 | L61: 13610585894 | M61: 396705830 | N61: 91703575 | O61: 58 | P61: 91703575
A62: 59 | B62: 66.24157776 | C62: 8.824422025 | D62: -5.179214168 | E62: 69 | F62: 2155 | G62: 54649 | H62: 1055909 | I62: 15826388 | J62: 7746040013966 | K62: 405245281409 | L62: 14077744566 | M62: 467158672 | N62: 70452842 | O62: 59 | P62: 70452842
A63: 60 | B63: 67.15589548 | C63: 10.81281635 | D63: -8.204143276 | E63: 69 | F63: 2224 | G63: 56873 | H63: 1112782 | I63: 16939170 | J63: 8165866852602 | K63: 419826838636 | L63: 14581557227 | M63: 503812661 | N63: 36653989 | O63: 60 | P63: 36653989
A64: 61 | B64: 68.06009978 | C64: 12.66024908 | D64: -10.62060861 | E64: 70 | F64: 2294 | G64: 59167 | H64: 1171949 | I64: 18111119 | J64: 8600775000407 | K64: 434908147805 | L64: 15081309169 | M64: 499751942 | N64: -4060719 | O64: 61 | P64: -4060719
A65: 62 | B65: 68.95405447 | C65: 14.3426361 | D65: -12.24939199 | E65: 71 | F65: 2365 | G65: 61532 | H65: 1233481 | I65: 19344600 | J65: 9051223919844 | K65: 450448919437 | L65: 15540771632 | M65: 459462463 | N65: -40289479 | O65: 62 | P65: -40289479
A66: 63 | B66: 69.83762494 | C66: 15.83804492 | D66: -12.969694 | E66: 72 | F66: 2437 | G66: 63969 | H66: 1297450 | I66: 20642050 | J66: 9517596925587 | K66: 466373005743 | L66: 15924086306 | M66: 383314674 | N66: -76147789 | O66: 63 | P66: -76147789
A67: 64 | B67: 70.71067812 | C67: 17.12698061 | D67: -12.72809314 | E67: 75 | F67: 2512 | G67: 66481 | H67: 1363931 | I67: 22005981 | J67: 10000182729662 | K67: 482585804075 | L67: 16212798332 | M67: 288712026 | N67: -94602648 | O67: 64 | P67: -94602648
A68: 65 | B68: 71.57308253 | C68: =20*SIN(2*PI()*$A68/C$2) -> 18.19263991 | D68: =13*SIN(2*PI()*$A68/D$2) -> -11.54250784 | E68: =INT(B68+C68+D68) -> 78 | F68: 2590 | G68: 69071 | H68: 1433002 | I68: =H68+I67 -> 23438983 | J68: 10499166779651 | K68: 498984049989 | L68: 16398245914 | M68: 185447582 | N68: -103264444 | O68: 65 | P68: =N68 -> -103264444
A69: 66 | B69: =100*SIN(2*PI()*$A69/B$2) -> 72.4247083 | C69: 19.02113033 | D69: -9.500867536 | E69: 81 | F69: =E69+F68 -> 2671 | G69: 71742 | H69: 1504744 | I69: 24943727 | J69: 11014640342099 | K69: 515473562448 | L69: 16489512459 | M69: 91266545 | N69: -94181037 | O69: 66 | P69: -94181037
A70: 67 | B70: 73.26542717 | C70: 19.60165122 | D70: -6.75459135 | E70: 86 | F70: 2757 | G70: 74499 | H70: 1579243 | I70: 26522970 | J70: 11546624759368 | K70: 531984417269 | L70: 16510854821 | M70: 21342362 | N70: -69924183 | O70: 67 | P70: -69924183
A71: 68 | B71: 74.09511254 | C71: 19.92663462 | D71: -3.507358025 | E71: 90 | F71: 2847 | G71: 77346 | H71: 1656589 | I71: 28179559 | J71: 0 | K71: -11546624759368 | L71: -12078609176637 | M71: -12095120031458 | N71: -12095141373820 | O71: 68 | P71: -12095141373820
A72: 69 | B72: 74.91363945 | C72: 19.99184386 | D72: -9.556157948e-15 | E72: 94 | F72: 2941 | G72: 80287 | H72: 1736876 | I72: 29916435 | J72: 0 | K72: 0 | L72: 11546624759368 | M72: 23625233936005 | N72: 35720353967463 | O72: 69 | P72: 35720353967463
A73: 70 | B73: 75.72088465 | C73: 19.79642884 | D73: 3.507358025 | E73: 99 | F73: 3040 | G73: 83327 | H73: 1820203 | I73: 31736638 | J73: 0 | K73: =J73-J72 -> 0 | L73: 0 | M73: -11546624759368 | N73: -35171858695373 | O73: 70 | P73: -35171858695373
A74: 71 | B74: 76.51672656 | C74: 19.34293709 | D74: 6.75459135 | E74: 102 | F74: 3142 | G74: 86469 | H74: 1906672 | I74: 33643310 | J74: 0 | K74: 0 | L74: 0 | M74: 0 | N74: 11546624759368 | O74: 71 | P74: 11546624759368
A75: 72 | B75: 77.30104534 | C75: 18.63728058 | D75: 9.500867536 | E75: 105 | F75: 3247 | G75: 89716 | H75: 1996388 | I75: 35639698 | J75: 0 | K75: 0 | L75: 0 | M75: =L75-L74 -> 0 | N75: 0 | O75: 72 | P75: 0
A76: 73 | B76: 78.07372286 | C76: 17.68865862 | D76: 11.54250784 | E76: 107 | F76: 3354 | G76: 93070 | H76: 2089458 | I76: 37729156 | J76: 0 | K76: 0 | L76: 0 | M76: 0 | N76: 0 | O76: 73 | P76: 0
A77: 74 | B77: 78.83464276 | C77: 16.50943794 | D77: 12.72809314 | E77: 108 | F77: 3462 | G77: 96532 | H77: 2185990 | I77: 39915146 | J77: 0 | K77: 0 | L77: 0 | M77: 0 | N77: 0 | O77: 74 | P77: 0
A78: 75 | B78: 79.58369046 | C78: 15.11499149 | D78: 12.969694 | E78: 107 | F78: 3569 | G78: 100101 | H78: 2286091 | I78: 42201237 | J78: 0 | K78: 0 | L78: 0 | M78: 0 | N78: 0 | O78: 75 | P78: 0
A79: 76 | B79: 80.32075315 | C79: 13.52349801 | D79: 12.24939199 | E79: 106 | F79: 3675 | G79: 103776 | H79: 2389867 | I79: 44591104 | J79: 0 | K79: 0 | L79: 0 | M79: 0 | N79: 0 | O79: 76 | P79: 0
A80: 77 | B80: 81.04571983 | C80: 11.75570505 | D80: 10.62060861 | E80: 103 | F80: 3778 | G80: 107554 | H80: 2497421 | I80: 47088525 | J80: 0 | K80: 0 | L80: 0 | M80: 0 | N80: 0 | O80: 77 | P80: 0
A81: 78 | B81: 81.75848132 | C81: 9.834658493 | D81: 8.204143276 | E81: 99 | F81: 3877 | G81: 111431 | H81: 2608852 | I81: 49697377 | J81: 0 | K81: 0 | L81: 0 | M81: 0 | N81: 0 | O81: 78 | P81: 0
A82: 79 | B82: 82.45893028 | C82: 7.785402126 | D82: 5.179214168 | E82: 95 | F82: 3972 | G82: 115403 | H82: 2724255 | I82: 52421632 | J82: 0 | K82: 0 | L82: 0 | M82: 0 | N82: 0 | O82: 79 | P82: 0
A83: 80 | B83: 83.14696123 | C83: 5.634651137 | D83: 1.770166438 | E83: 90 | F83: 4062 | G83: 119465 | H83: 2843720 | I83: 55265352 | J83: 0 | K83: 0 | L83: 0 | M83: 0 | N83: 0 | O83: 80 | P83: 0
A84: 81 | B84: 83.82247056 | C84: 3.410443853 | D84: -1.770166438 | E84: 85 | F84: 4147 | G84: 123612 | H84: 2967332 | I84: 58232684 | J84: 0 | K84: 0 | L84: 0 | M84: 0 | N84: 0 | O84: 81 | P84: 0
A85: 82 | B85: 84.48535652 | C85: 1.141776217 | D85: -5.179214168 | E85: 80 | F85: 4227 | G85: 127839 | H85: 3095171 | I85: 61327855 | J85: 0 | K85: 0 | L85: 0 | M85: 0 | N85: 0 | O85: 82 | P85: 0
A86: 83 | B86: 85.13551931 | C86: -1.141776217 | D86: -8.204143276 | E86: 75 | F86: 4302 | G86: 132141 | H86: 3227312 | I86: 64555167 | J86: 0 | K86: 0 | L86: 0 | M86: 0 | N86: 0 | O86: 83 | P86: 0
A87: 84 | B87: 85.772861 | C87: -3.410443853 | D87: -10.62060861 | E87: 71 | F87: 4373 | G87: 136514 | H87: 3363826 | I87: 67918993 | J87: 0 | K87: 0 | L87: 0 | M87: 0 | N87: 0 | O87: 84 | P87: 0
A88: 85 | B88: 86.39728561 | C88: -5.634651137 | D88: -12.24939199 | E88: 68 | F88: 4441 | G88: 140955 | H88: 3504781 | I88: 71423774 | J88: 0 | K88: 0 | L88: 0 | M88: 0 | N88: 0 | O88: 85 | P88: 0
A89: 86 | B89: 87.00869911 | C89: -7.785402126 | D89: -12.969694 | E89: 66 | F89: 4507 | G89: 145462 | H89: 3650243 | I89: 75074017 | J89: 0 | K89: 0 | L89: 0 | M89: 0 | N89: 0 | O89: 86 | P89: 0
A90: 87 | B90: 87.60700942 | C90: -9.834658493 | D90: -12.72809314 | E90: 65 | F90: 4572 | G90: 150034 | H90: 3800277 | I90: 78874294 | J90: 0 | K90: 0 | L90: 0 | M90: 0 | N90: 0 | O90: 87 | P90: 0
A91: 88 | B91: 88.19212643 | C91: -11.75570505 | D91: -11.54250784 | E91: 64 | F91: 4636 | G91: 154670 | H91: 3954947 | I91: 82829241 | J91: 0 | K91: 0 | L91: 0 | M91: 0 | N91: 0 | O91: 88 | P91: 0
A92: 89 | B92: 88.76396204 | C92: -13.52349801 | D92: -9.500867536 | E92: 65 | F92: 4701 | G92: 159371 | H92: 4114318 | I92: 86943559 | J92: 0 | K92: 0 | L92: 0 | M92: 0 | N92: 0 | O92: 89 | P92: 0
A93: 90 | B93: 89.32243012 | C93: -15.11499149 | D93: -6.75459135 | E93: 67 | F93: 4768 | G93: 164139 | H93: 4278457 | I93: 91222016 | J93: 0 | K93: 0 | L93: 0 | M93: 0 | N93: 0 | O93: 90 | P93: 0
A94: 91 | B94: 89.86744657 | C94: -16.50943794 | D94: -3.507358025 | E94: 69 | F94: 4837 | G94: 168976 | H94: 4447433 | I94: 95669449 | J94: 0 | K94: 0 | L94: 0 | M94: 0 | N94: 0 | O94: 91 | P94: 0
A95: 92 | B95: 90.39892931 | C95: -17.68865862 | D95: -1.274154393e-14 | E95: 72 | F95: 4909 | G95: 173885 | H95: 4621318 | I95: 100290767 | J95: 0 | K95: 0 | L95: 0 | M95: 0 | N95: 0 | O95: 92 | P95: 0
A96: 93 | B96: 90.91679831 | C96: -18.63728058 | D96: 3.507358025 | E96: 75 | F96: 4984 | G96: 178869 | H96: 4800187 | I96: 105090954 | J96: 0 | K96: 0 | L96: 0 | M96: 0 | N96: 0 | O96: 93 | P96: 0
A97: 94 | B97: 91.42097557 | C97: -19.34293709 | D97: 6.75459135 | E97: 78 | F97: 5062 | G97: 183931 | H97: 4984118 | I97: 110075072 | J97: 0 | K97: 0 | L97: 0 | M97: 0 | N97: 0 | O97: 94 | P97: 0
A98: 95 | B98: 91.91138517 | C98: -19.79642884 | D98: 9.500867536 | E98: 81 | F98: 5143 | G98: 189074 | H98: 5173192 | I98: 115248264 | J98: 0 | K98: 0 | L98: 0 | M98: 0 | N98: 0 | O98: 95 | P98: 0
A99: 96 | B99: 92.38795325 | C99: -19.99184386 | D99: 11.54250784 | E99: 83 | F99: 5226 | G99: 194300 | H99: 5367492 | I99: 120615756 | J99: 0 | K99: 0 | L99: 0 | M99: 0 | N99: 0 | O99: 96 | P99: 0
A100: 97 | B100: 92.85060805 | C100: -19.92663462 | D100: 12.72809314 | E100: 85 | F100: 5311 | G100: 199611 | H100: 5567103 | I100: 126182859 | J100: 0 | K100: 0 | L100: 0 | M100: 0 | N100: 0 | O100: 97 | P100: 0
A101: 98 | B101: 93.29927988 | C101: -19.60165122 | D101: 12.969694 | E101: 86 | F101: 5397 | G101: 205008 | H101: 5772111 | I101: 131954970 | J101: 0 | K101: 0 | L101: 0 | M101: 0 | N101: 0 | O101: 98 | P101: 0
A102: 99 | B102: 93.73390119 | C102: -19.02113033 | D102: 12.24939199 | E102: 86 | F102: 5483 | G102: 210491 | H102: 5982602 | I102: 137937572 | J102: 0 | K102: 0 | L102: 0 | M102: 0 | N102: 0 | O102: 99 | P102: 0
A103: 100 | B103: 94.15440652 | C103: -18.19263991 | D103: 10.62060861 | E103: 86 | F103: 5569 | G103: 216060 | H103: 6198662 | I103: 144136234 | J103: 0 | K103: 0 | L103: 0 | M103: 0 | N103: 0 | O103: 100 | P103: 0
A104: 101 | B104: 94.56073254 | C104: -17.12698061 | D104: 8.204143276 | E104: 85 | F104: 5654 | G104: 221714 | H104: 6420376 | I104: 150556610 | J104: 0 | K104: 0 | L104: 0 | M104: 0 | N104: 0 | O104: 101 | P104: 0
A105: 102 | B105: 94.95281806 | C105: -15.83804492 | D105: 5.179214168 | E105: 84 | F105: 5738 | G105: 227452 | H105: 6647828 | I105: 157204438 | J105: 0 | K105: 0 | L105: 0 | M105: 0 | N105: 0 | O105: 102 | P105: 0
A106: 103 | B106: 95.33060404 | C106: -14.3426361 | D106: 1.770166438 | E106: 82 | F106: 5820 | G106: 233272 | H106: 6881100 | I106: 164085538 | J106: 0 | K106: 0 | L106: 0 | M106: 0 | N106: 0 | O106: 103 | P106: 0
A107: 104 | B107: 95.69403357 | C107: -12.66024908 | D107: -1.770166438 | E107: 81 | F107: 5901 | G107: 239173 | H107: 7120273 | I107: 171205811 | J107: 0 | K107: 0 | L107: 0 | M107: 0 | N107: 0 | O107: 104 | P107: 0
A108: 105 | B108: 96.04305194 | C108: -10.81281635 | D108: -5.179214168 | E108: 80 | F108: 5981 | G108: 245154 | H108: 7365427 | I108: 178571238 | J108: 0 | K108: 0 | L108: 0 | M108: 0 | N108: 0 | O108: 105 | P108: 0
A109: 106 | B109: 96.37760658 | C109: -8.824422025 | D109: -8.204143276 | E109: 79 | F109: 6060 | G109: 251214 | H109: 7616641 | I109: 186187879 | J109: 0 | K109: 0 | L109: 0 | M109: 0 | N109: 0 | O109: 106 | P109: 0
A110: 107 | B110: 96.6976471 | C110: -6.720987864 | D110: -10.62060861 | E110: 79 | F110: 6139 | G110: 257353 | H110: 7873994 | I110: 194061873 | J110: 0 | K110: 0 | L110: 0 | M110: 0 | N110: 0 | O110: 107 | P110: 0
A111: 108 | B111: 97.00312532 | C111: -4.529935349 | D111: -12.24939199 | E111: 80 | F111: 6219 | G111: 263572 | H111: 8137566 | I111: 202199439 | J111: 0 | K111: 0 | L111: 0 | M111: 0 | N111: 0 | O111: 108 | P111: 0
A112: 109 | B112: 97.29399522 | C112: -2.279828198 | D112: -12.969694 | E112: 82 | F112: 6301 | G112: 269873 | H112: 8407439 | I112: 210606878 | J112: 0 | K112: 0 | L112: 0 | M112: 0 | N112: 0 | O112: 109 | P112: 0
A113: 110 | B113: 97.570213 | C113: -9.801187639e-15 | D113: -12.72809314 | E113: 84 | F113: 6385 | G113: 276258 | H113: 8683697 | I113: 219290575 | J113: 0 | K113: 0 | L113: 0 | M113: 0 | N113: 0 | O113: 110 | P113: 0
A114: 111 | B114: 97.83173707 | C114: 2.279828198 | D114: -11.54250784 | E114: 88 | F114: 6473 | G114: 282731 | H114: 8966428 | I114: 228257003 | J114: 0 | K114: 0 | L114: 0 | M114: 0 | N114: 0 | O114: 111 | P114: 0
A115: 112 | B115: 98.07852804 | C115: 4.529935349 | D115: -9.500867536 | E115: 93 | F115: 6566 | G115: 289297 | H115: 9255725 | I115: 237512728 | J115: 0 | K115: 0 | L115: 0 | M115: 0 | N115: 0 | O115: 112 | P115: 0
A116: 113 | B116: 98.31054874 | C116: 6.720987864 | D116: -6.75459135 | E116: 98 | F116: 6664 | G116: 295961 | H116: 9551686 | I116: 247064414 | J116: 0 | K116: 0 | L116: 0 | M116: 0 | N116: 0 | O116: 113 | P116: 0
A117: 114 | B117: 98.52776424 | C117: 8.824422025 | D117: -3.507358025 | E117: 103 | F117: 6767 | G117: 302728 | H117: 9854414 | I117: 256918828 | J117: 0 | K117: 0 | L117: 0 | M117: 0 | N117: 0 | O117: 114 | P117: 0
A118: 115 | B118: 98.73014182 | C118: 10.81281635 | D118: 3.025834791e-14 | E118: 109 | F118: 6876 | G118: 309604 | H118: 10164018 | I118: 267082846 | J118: 0 | K118: 0 | L118: 0 | M118: 0 | N118: 0 | O118: 115 | P118: 0
A119: 116 | B119: 98.917651 | C119: 12.66024908 | D119: 3.507358025 | E119: 115 | F119: 6991 | G119: 316595 | H119: 10480613 | I119: 277563459 | J119: 0 | K119: 0 | L119: 0 | M119: 0 | N119: 0 | O119: 116 | P119: 0
A120: 117 | B120: 99.09026354 | C120: 14.3426361 | D120: 6.75459135 | E120: 120 | F120: 7111 | G120: 323706 | H120: 10804319 | I120: 288367778 | J120: 0 | K120: 0 | L120: 0 | M120: 0 | N120: 0 | O120: 117 | P120: 0
A121: 118 | B121: 99.24795346 | C121: 15.83804492 | D121: 9.500867536 | E121: 124 | F121: 7235 | G121: 330941 | H121: 11135260 | I121: 299503038 | J121: 0 | K121: 0 | L121: 0 | M121: 0 | N121: 0 | O121: 118 | P121: 0
A122: 119 | B122: 99.390697 | C122: 17.12698061 | D122: 11.54250784 | E122: 128 | F122: 7363 | G122: 338304 | H122: 11473564 | I122: 310976602 | J122: 0 | K122: 0 | L122: 0 | M122: 0 | N122: 0 | O122: 119 | P122: 0
A123: 120 | B123: 99.51847267 | C123: 18.19263991 | D123: 12.72809314 | E123: 130 | F123: 7493 | G123: 345797 | H123: 11819361 | I123: 322795963 | J123: 0 | K123: 0 | L123: 0 | M123: 0 | N123: 0 | O123: 120 | P123: 0
A124: 121 | B124: 99.63126122 | C124: 19.02113033 | D124: 12.969694 | E124: 131 | F124: 7624 | G124: 353421 | H124: 12172782 | I124: 334968745 | J124: 0 | K124: 0 | L124: 0 | M124: 0 | N124: 0 | O124: 121 | P124: 0
A125: 122 | B125: 99.72904567 | C125: 19.60165122 | D125: 12.24939199 | E125: 131 | F125: 7755 | G125: 361176 | H125: 12533958 | I125: 347502703 | J125: 0 | K125: 0 | L125: 0 | M125: 0 | N125: 0 | O125: 122 | P125: 0
A126: 123 | B126: 99.81181129 | C126: 19.92663462 | D126: 10.62060861 | E126: 130 | F126: 7885 | G126: 369061 | H126: 12903019 | I126: 360405722 | J126: 0 | K126: 0 | L126: 0 | M126: 0 | N126: 0 | O126: 123 | P126: 0
A127: 124 | B127: 99.87954562 | C127: 19.99184386 | D127: 8.204143276 | E127: 128 | F127: 8013 | G127: 377074 | H127: 13280093 | I127: 373685815 | J127: 0 | K127: 0 | L127: 0 | M127: 0 | N127: 0 | O127: 124 | P127: 0
A128: 125 | B128: 99.93223846 | C128: 19.79642884 | D128: 5.179214168 | E128: 124 | F128: 8137 | G128: 385211 | H128: 13665304 | I128: 387351119 | J128: 0 | K128: 0 | L128: 0 | M128: 0 | N128: 0 | O128: 125 | P128: 0
A129: 126 | B129: 99.96988187 | C129: 19.34293709 | D129: 1.770166438 | E129: 121 | F129: 8258 | G129: 393469 | H129: 14058773 | I129: 401409892 | J129: 0 | K129: 0 | L129: 0 | M129: 0 | N129: 0 | O129: 126 | P129: 0
A130: 127 | B130: 99.99247018 | C130: 18.63728058 | D130: -1.770166438 | E130: 116 | F130: 8374 | G130: 401843 | H130: 14460616 | I130: 415870508 | J130: 0 | K130: 0 | L130: 0 | M130: 0 | N130: 0 | O130: 127 | P130: 0
A131: 128 | B131: 100 | C131: 17.68865862 | D131: -5.179214168 | E131: 112 | F131: 8486 | G131: 410329 | H131: 14870945 | I131: 430741453 | J131: 0 | K131: 0 | L131: 0 | M131: 0 | N131: 0 | O131: 128 | P131: 0
A132: 129 | B132: 99.99247018 | C132: =20*SIN(2*PI()*$A132/C$2) -> 16.50943794 | D132: =13*SIN(2*PI()*$A132/D$2) -> -8.204143276 | E132: =INT(B132+C132+D132) -> 108 | F132: 8594 | G132: 418923 | H132: 15289868 | I132: =H132+I131 -> 446031321 | J132: 0 | K132: 0 | L132: 0 | M132: 0 | N132: 0 | O132: 129 | P132: =N132 -> 0
A133: 130 | B133: =100*SIN(2*PI()*$A133/B$2) -> 99.96988187 | C133: 15.11499149 | D133: -10.62060861 | E133: 104 | F133: =E133+F132 -> 8698 | G133: 427621 | H133: 15717489 | I133: 461748810 | J133: 0 | K133: 0 | L133: 0 | M133: 0 | N133: 0 | O133: 130 | P133: 0
A134: 131 | B134: 99.93223846 | C134: 13.52349801 | D134: -12.24939199 | E134: 101 | F134: 8799 | G134: 436420 | H134: 16153909 | I134: 477902719 | J134: 0 | K134: =J134-J133 -> 0 | L134: 0 | M134: 0 | N134: 0 | O134: 131 | P134: 0
A135: 132 | B135: 99.87954562 | C135: 11.75570505 | D135: -12.969694 | E135: 98 | F135: 8897 | G135: 445317 | H135: 16599226 | I135: 494501945 | J135: 0 | K135: 0 | L135: 0 | M135: 0 | N135: 0 | O135: 132 | P135: 0
A136: 133 | B136: 99.81181129 | C136: 9.834658493 | D136: -12.72809314 | E136: 96 | F136: 8993 | G136: 454310 | H136: 17053536 | I136: 511555481 | J136: 0 | K136: 0 | L136: 0 | M136: 0 | N136: 0 | O136: 133 | P136: 0
A137: 134 | B137: 99.72904567 | C137: 7.785402126 | D137: -11.54250784 | E137: 95 | F137: 9088 | G137: 463398 | H137: 17516934 | I137: 529072415 | J137: 0 | K137: =J137-J136 -> 0 | L137: 0 | M137: 0 | N137: 0 | O137: 134 | P137: 0
A138: 135 | B138: 99.63126122 | C138: 5.634651137 | D138: -9.500867536 | E138: 95 | F138: 9183 | G138: 472581 | H138: 17989515 | I138: 547061930 | J138: 0 | K138: 0 | L138: 0 | M138: 0 | N138: 0 | O138: 135 | P138: 0
A139: 136 | B139: 99.51847267 | C139: 3.410443853 | D139: -6.75459135 | E139: 96 | F139: 9279 | G139: 481860 | H139: 18471375 | I139: 565533305 | J139: 0 | K139: 0 | L139: 0 | M139: =L139-L138 -> 0 | N139: 0 | O139: 136 | P139: 0
A140: 137 | B140: 99.390697 | C140: 1.141776217 | D140: -3.507358025 | E140: 97 | F140: 9376 | G140: 491236 | H140: 18962611 | I140: 584495916 | J140: 0 | K140: 0 | L140: 0 | M140: 0 | N140: 0 | O140: 137 | P140: 0
A141: 138 | B141: 99.24795346 | C141: -1.141776217 | D141: -1.91123159e-14 | E141: 98 | F141: 9474 | G141: 500710 | H141: 19463321 | I141: 603959237 | J141: 0 | K141: 0 | L141: 0 | M141: 0 | N141: 0 | O141: 138 | P141: 0
A142: 139 | B142: 99.09026354 | C142: -3.410443853 | D142: 3.507358025 | E142: 99 | F142: 9573 | G142: 510283 | H142: 19973604 | I142: 623932841 | J142: 0 | K142: 0 | L142: 0 | M142: 0 | N142: 0 | O142: 139 | P142: 0
A143: 140 | B143: 98.917651 | C143: -5.634651137 | D143: 6.75459135 | E143: 100 | F143: 9673 | G143: 519956 | H143: 20493560 | I143: 644426401 | J143: 0 | K143: 0 | L143: 0 | M143: 0 | N143: 0 | O143: 140 | P143: 0
A144: 141 | B144: 98.73014182 | C144: -7.785402126 | D144: 9.500867536 | E144: 100 | F144: 9773 | G144: 529729 | H144: 21023289 | I144: 665449690 | J144: 0 | K144: 0 | L144: 0 | M144: 0 | N144: 0 | O144: 141 | P144: 0
A145: 142 | B145: 98.52776424 | C145: -9.834658493 | D145: 11.54250784 | E145: 100 | F145: 9873 | G145: 539602 | H145: 21562891 | I145: 687012581 | J145: 0 | K145: 0 | L145: 0 | M145: 0 | N145: 0 | O145: 142 | P145: 0
A146: 143 | B146: 98.31054874 | C146: -11.75570505 | D146: 12.72809314 | E146: 99 | F146: 9972 | G146: 549574 | H146: 22112465 | I146: 709125046 | J146: 0 | K146: 0 | L146: 0 | M146: 0 | N146: 0 | O146: 143 | P146: 0
A147: 144 | B147: 98.07852804 | C147: -13.52349801 | D147: 12.969694 | E147: 97 | F147: 10069 | G147: 559643 | H147: 22672108 | I147: 731797154 | J147: 0 | K147: 0 | L147: 0 | M147: 0 | N147: 0 | O147: 144 | P147: 0
A148: 145 | B148: 97.83173707 | C148: -15.11499149 | D148: 12.24939199 | E148: 94 | F148: 10163 | G148: 569806 | H148: 23241914 | I148: 755039068 | J148: 0 | K148: 0 | L148: 0 | M148: 0 | N148: 0 | O148: 145 | P148: 0
A149: 146 | B149: 97.570213 | C149: -16.50943794 | D149: 10.62060861 | E149: 91 | F149: 10254 | G149: 580060 | H149: 23821974 | I149: 778861042 | J149: 0 | K149: 0 | L149: 0 | M149: 0 | N149: 0 | O149: 146 | P149: 0
A150: 147 | B150: 97.29399522 | C150: -17.68865862 | D150: 8.204143276 | E150: 87 | F150: 10341 | G150: 590401 | H150: 24412375 | I150: 803273417 | J150: 0 | K150: 0 | L150: 0 | M150: 0 | N150: 0 | O150: 147 | P150: 0
A151: 148 | B151: 97.00312532 | C151: -18.63728058 | D151: 5.179214168 | E151: 83 | F151: 10424 | G151: 600825 | H151: 25013200 | I151: 828286617 | J151: 0 | K151: 0 | L151: 0 | M151: 0 | N151: 0 | O151: 148 | P151: 0
A152: 149 | B152: 96.6976471 | C152: -19.34293709 | D152: 1.770166438 | E152: 79 | F152: 10503 | G152: 611328 | H152: 25624528 | I152: 853911145 | J152: 0 | K152: 0 | L152: 0 | M152: 0 | N152: 0 | O152: 149 | P152: 0
A153: 150 | B153: 96.37760658 | C153: -19.79642884 | D153: -1.770166438 | E153: 74 | F153: 10577 | G153: 621905 | H153: 26246433 | I153: 880157578 | J153: 0 | K153: 0 | L153: 0 | M153: 0 | N153: 0 | O153: 150 | P153: 0
A154: 151 | B154: 96.04305194 | C154: -19.99184386 | D154: -5.179214168 | E154: 70 | F154: 10647 | G154: 632552 | H154: 26878985 | I154: 907036563 | J154: 0 | K154: 0 | L154: 0 | M154: 0 | N154: 0 | O154: 151 | P154: 0
A155: 152 | B155: 95.69403357 | C155: -19.92663462 | D155: -8.204143276 | E155: 67 | F155: 10714 | G155: 643266 | H155: 27522251 | I155: 934558814 | J155: 0 | K155: 0 | L155: 0 | M155: 0 | N155: 0 | O155: 152 | P155: 0
A156: 153 | B156: 95.33060404 | C156: -19.60165122 | D156: -10.62060861 | E156: 65 | F156: 10779 | G156: 654045 | H156: 28176296 | I156: 962735110 | J156: 0 | K156: 0 | L156: 0 | M156: 0 | N156: 0 | O156: 153 | P156: 0
A157: 154 | B157: 94.95281806 | C157: -19.02113033 | D157: -12.24939199 | E157: 63 | F157: 10842 | G157: 664887 | H157: 28841183 | I157: 991576293 | J157: 0 | K157: 0 | L157: 0 | M157: 0 | N157: 0 | O157: 154 | P157: 0
A158: 155 | B158: 94.56073254 | C158: -18.19263991 | D158: -12.969694 | E158: 63 | F158: 10905 | G158: 675792 | H158: 29516975 | I158: 1021093268 | J158: 0 | K158: 0 | L158: 0 | M158: 0 | N158: 0 | O158: 155 | P158: 0
A159: 156 | B159: 94.15440652 | C159: -17.12698061 | D159: -12.72809314 | E159: 64 | F159: 10969 | G159: 686761 | H159: 30203736 | I159: 1051297004 | J159: 0 | K159: 0 | L159: 0 | M159: 0 | N159: 0 | O159: 156 | P159: 0
A160: 157 | B160: 93.73390119 | C160: -15.83804492 | D160: -11.54250784 | E160: 66 | F160: 11035 | G160: 697796 | H160: 30901532 | I160: 1082198536 | J160: 0 | K160: 0 | L160: 0 | M160: 0 | N160: 0 | O160: 157 | P160: 0
A161: 158 | B161: 93.29927988 | C161: -14.3426361 | D161: -9.500867536 | E161: 69 | F161: 11104 | G161: 708900 | H161: 31610432 | I161: 1113808968 | J161: 0 | K161: 0 | L161: 0 | M161: 0 | N161: 0 | O161: 158 | P161: 0
A162: 159 | B162: 92.85060805 | C162: -12.66024908 | D162: -6.75459135 | E162: 73 | F162: 11177 | G162: 720077 | H162: 32330509 | I162: 1146139477 | J162: 0 | K162: 0 | L162: 0 | M162: 0 | N162: 0 | O162: 159 | P162: 0
A163: 160 | B163: 92.38795325 | C163: -10.81281635 | D163: -3.507358025 | E163: 78 | F163: 11255 | G163: 731332 | H163: 33061841 | I163: 1179201318 | J163: 0 | K163: 0 | L163: 0 | M163: 0 | N163: 0 | O163: 160 | P163: 0
A164: 161 | B164: 91.91138517 | C164: -8.824422025 | D164: -2.229770188e-14 | E164: 83 | F164: 11338 | G164: 742670 | H164: 33804511 | I164: 1213005829 | J164: 0 | K164: 0 | L164: 0 | M164: 0 | N164: 0 | O164: 161 | P164: 0
A165: 162 | B165: 91.42097557 | C165: -6.720987864 | D165: 3.507358025 | E165: 88 | F165: 11426 | G165: 754096 | H165: 34558607 | I165: 1247564436 | J165: 0 | K165: 0 | L165: 0 | M165: 0 | N165: 0 | O165: 162 | P165: 0
A166: 163 | B166: 90.91679831 | C166: -4.529935349 | D166: 6.75459135 | E166: 93 | F166: 11519 | G166: 765615 | H166: 35324222 | I166: 1282888658 | J166: 0 | K166: 0 | L166: 0 | M166: 0 | N166: 0 | O166: 163 | P166: 0
A167: 164 | B167: 90.39892931 | C167: -2.279828198 | D167: 9.500867536 | E167: 97 | F167: 11616 | G167: 777231 | H167: 36101453 | I167: 1318990111 | J167: 0 | K167: 0 | L167: 0 | M167: 0 | N167: 0 | O167: 164 | P167: 0
A168: 165 | B168: 89.86744657 | C168: -8.575605503e-14 | D168: 11.54250784 | E168: 101 | F168: 11717 | G168: 788948 | H168: 36890401 | I168: 1355880512 | J168: 0 | K168: 0 | L168: 0 | M168: 0 | N168: 0 | O168: 165 | P168: 0
A169: 166 | B169: 89.32243012 | C169: 2.279828198 | D169: 12.72809314 | E169: 104 | F169: 11821 | G169: 800769 | H169: 37691170 | I169: 1393571682 | J169: 0 | K169: 0 | L169: 0 | M169: 0 | N169: 0 | O169: 166 | P169: 0
A170: 167 | B170: 88.76396204 | C170: 4.529935349 | D170: 12.969694 | E170: 106 | F170: 11927 | G170: 812696 | H170: 38503866 | I170: 1432075548 | J170: 0 | K170: 0 | L170: 0 | M170: 0 | N170: 0 | O170: 167 | P170: 0
A171: 168 | B171: 88.19212643 | C171: 6.720987864 | D171: 12.24939199 | E171: 107 | F171: 12034 | G171: 824730 | H171: 39328596 | I171: 1471404144 | J171: 0 | K171: 0 | L171: 0 | M171: 0 | N171: 0 | O171: 168 | P171: 0
A172: 169 | B172: 87.60700942 | C172: 8.824422025 | D172: 10.62060861 | E172: 107 | F172: 12141 | G172: 836871 | H172: 40165467 | I172: 1511569611 | J172: 0 | K172: 0 | L172: 0 | M172: 0 | N172: 0 | O172: 169 | P172: 0
A173: 170 | B173: 87.00869911 | C173: 10.81281635 | D173: 8.204143276 | E173: 106 | F173: 12247 | G173: 849118 | H173: 41014585 | I173: 1552584196 | J173: 0 | K173: 0 | L173: 0 | M173: 0 | N173: 0 | O173: 170 | P173: 0
A174: 171 | B174: 86.39728561 | C174: 12.66024908 | D174: 5.179214168 | E174: 104 | F174: 12351 | G174: 861469 | H174: 41876054 | I174: 1594460250 | J174: 0 | K174: 0 | L174: 0 | M174: 0 | N174: 0 | O174: 171 | P174: 0
A175: 172 | B175: 85.772861 | C175: 14.3426361 | D175: 1.770166438 | E175: 101 | F175: 12452 | G175: 873921 | H175: 42749975 | I175: 1637210225 | J175: 0 | K175: 0 | L175: 0 | M175: 0 | N175: 0 | O175: 172 | P175: 0
A176: 173 | B176: 85.13551931 | C176: 15.83804492 | D176: -1.770166438 | E176: 99 | F176: 12551 | G176: 886472 | H176: 43636447 | I176: 1680846672 | J176: 0 | K176: 0 | L176: 0 | M176: 0 | N176: 0 | O176: 173 | P176: 0
A177: 174 | B177: 84.48535652 | C177: 17.12698061 | D177: -5.179214168 | E177: 96 | F177: 12647 | G177: 899119 | H177: 44535566 | I177: 1725382238 | J177: 0 | K177: 0 | L177: 0 | M177: 0 | N177: 0 | O177: 174 | P177: 0
A178: 175 | B178: 83.82247056 | C178: 18.19263991 | D178: -8.204143276 | E178: 93 | F178: 12740 | G178: 911859 | H178: 45447425 | I178: 1770829663 | J178: 0 | K178: 0 | L178: 0 | M178: 0 | N178: 0 | O178: 175 | P178: 0
A179: 176 | B179: 83.14696123 | C179: 19.02113033 | D179: -10.62060861 | E179: 91 | F179: 12831 | G179: 924690 | H179: 46372115 | I179: 1817201778 | J179: 0 | K179: 0 | L179: 0 | M179: 0 | N179: 0 | O179: 176 | P179: 0
A180: 177 | B180: 82.45893028 | C180: 19.60165122 | D180: -12.24939199 | E180: 89 | F180: 12920 | G180: 937610 | H180: 47309725 | I180: 1864511503 | J180: 0 | K180: 0 | L180: 0 | M180: 0 | N180: 0 | O180: 177 | P180: 0
A181: 178 | B181: 81.75848132 | C181: 19.92663462 | D181: -12.969694 | E181: 88 | F181: 13008 | G181: 950618 | H181: 48260343 | I181: 1912771846 | J181: 0 | K181: 0 | L181: 0 | M181: 0 | N181: 0 | O181: 178 | P181: 0
A182: 179 | B182: 81.04571983 | C182: 19.99184386 | D182: -12.72809314 | E182: 88 | F182: 13096 | G182: 963714 | H182: 49224057 | I182: 1961995903 | J182: 0 | K182: 0 | L182: 0 | M182: 0 | N182: 0 | O182: 179 | P182: 0
A183: 180 | B183: 80.32075315 | C183: 19.79642884 | D183: -11.54250784 | E183: 88 | F183: 13184 | G183: 976898 | H183: 50200955 | I183: 2012196858 | J183: 0 | K183: 0 | L183: 0 | M183: 0 | N183: 0 | O183: 180 | P183: 0
A184: 181 | B184: 79.58369046 | C184: 19.34293709 | D184: -9.500867536 | E184: 89 | F184: 13273 | G184: 990171 | H184: 51191126 | I184: 2063387984 | J184: 0 | K184: 0 | L184: 0 | M184: 0 | N184: 0 | O184: 181 | P184: 0
A185: 182 | B185: 78.83464276 | C185: 18.63728058 | D185: -6.75459135 | E185: 90 | F185: 13363 | G185: 1003534 | H185: 52194660 | I185: 2115582644 | J185: 0 | K185: 0 | L185: 0 | M185: 0 | N185: 0 | O185: 182 | P185: 0
A186: 183 | B186: 78.07372286 | C186: 17.68865862 | D186: -3.507358025 | E186: 92 | F186: 13455 | G186: 1016989 | H186: 53211649 | I186: 2168794293 | J186: 0 | K186: 0 | L186: 0 | M186: 0 | N186: 0 | O186: 183 | P186: 0
A187: 184 | B187: 77.30104534 | C187: 16.50943794 | D187: -2.548308786e-14 | E187: 93 | F187: 13548 | G187: 1030537 | H187: 54242186 | I187: 2223036479 | J187: 0 | K187: 0 | L187: 0 | M187: 0 | N187: 0 | O187: 184 | P187: 0
A188: 185 | B188: 76.51672656 | C188: 15.11499149 | D188: 3.507358025 | E188: 95 | F188: 13643 | G188: 1044180 | H188: 55286366 | I188: 2278322845 | J188: 0 | K188: 0 | L188: 0 | M188: 0 | N188: 0 | O188: 185 | P188: 0
A189: 186 | B189: 75.72088465 | C189: 13.52349801 | D189: 6.75459135 | E189: 95 | F189: 13738 | G189: 1057918 | H189: 56344284 | I189: 2334667129 | J189: 0 | K189: 0 | L189: 0 | M189: 0 | N189: 0 | O189: 186 | P189: 0
A190: 187 | B190: 74.91363945 | C190: 11.75570505 | D190: 9.500867536 | E190: 96 | F190: 13834 | G190: 1071752 | H190: 57416036 | I190: 2392083165 | J190: 0 | K190: 0 | L190: 0 | M190: 0 | N190: 0 | O190: 187 | P190: 0
A191: 188 | B191: 74.09511254 | C191: 9.834658493 | D191: 11.54250784 | E191: 95 | F191: 13929 | G191: 1085681 | H191: 58501717 | I191: 2450584882 | J191: 0 | K191: 0 | L191: 0 | M191: 0 | N191: 0 | O191: 188 | P191: 0
A192: 189 | B192: 73.26542717 | C192: 7.785402126 | D192: 12.72809314 | E192: 93 | F192: 14022 | G192: 1099703 | H192: 59601420 | I192: 2510186302 | J192: 0 | K192: 0 | L192: 0 | M192: 0 | N192: 0 | O192: 189 | P192: 0
A193: 190 | B193: 72.4247083 | C193: 5.634651137 | D193: 12.969694 | E193: 91 | F193: 14113 | G193: 1113816 | H193: 60715236 | I193: 2570901538 | J193: 0 | K193: 0 | L193: 0 | M193: 0 | N193: 0 | O193: 190 | P193: 0
A194: 191 | B194: 71.57308253 | C194: 3.410443853 | D194: 12.24939199 | E194: 87 | F194: 14200 | G194: 1128016 | H194: 61843252 | I194: 2632744790 | J194: 0 | K194: 0 | L194: 0 | M194: 0 | N194: 0 | O194: 191 | P194: 0
A195: 192 | B195: 70.71067812 | C195: 1.141776217 | D195: 10.62060861 | E195: 82 | F195: 14282 | G195: 1142298 | H195: 62985550 | I195: 2695730340 | J195: 0 | K195: 0 | L195: 0 | M195: 0 | N195: 0 | O195: 192 | P195: 0
A196: 193 | B196: 69.83762494 | C196: =20*SIN(2*PI()*$A196/C$2) -> -1.141776217 | D196: =13*SIN(2*PI()*$A196/D$2) -> 8.204143276 | E196: =INT(B196+C196+D196) -> 76 | F196: 14358 | G196: 1156656 | H196: 64142206 | I196: =H196+I195 -> 2759872546 | J196: 0 | K196: 0 | L196: 0 | M196: 0 | N196: 0 | O196: 193 | P196: =N196 -> 0
A197: 194 | B197: =100*SIN(2*PI()*$A197/B$2) -> 68.95405447 | C197: -3.410443853 | D197: 5.179214168 | E197: 70 | F197: =E197+F196 -> 14428 | G197: 1171084 | H197: 65313290 | I197: 2825185836 | J197: 0 | K197: 0 | L197: 0 | M197: 0 | N197: 0 | O197: 194 | P197: 0
A198: 195 | B198: 68.06009978 | C198: -5.634651137 | D198: 1.770166438 | E198: 64 | F198: 14492 | G198: 1185576 | H198: 66498866 | I198: 2891684702 | J198: 0 | K198: 0 | L198: 0 | M198: 0 | N198: 0 | O198: 195 | P198: 0
A199: 196 | B199: 67.15589548 | C199: -7.785402126 | D199: -1.770166438 | E199: 57 | F199: 14549 | G199: 1200125 | H199: 67698991 | I199: 2959383693 | J199: 0 | K199: 0 | L199: 0 | M199: 0 | N199: 0 | O199: 196 | P199: 0
A200: 197 | B200: 66.24157776 | C200: -9.834658493 | D200: -5.179214168 | E200: 51 | F200: 14600 | G200: 1214725 | H200: 68913716 | I200: 3028297409 | J200: 0 | K200: 0 | L200: 0 | M200: 0 | N200: 0 | O200: 197 | P200: 0
... 2106 more rows

Sheet fresp
C3: fsmp | D3: 1560 | E3: KHz
C4: M | D4: 32
C5: N | D5: 4
A8: 0 | B8: 0.0001 | C8: =SIN($D$4*PI()*$B8/D$3)/SIN(PI()*$B8/D$3) -> 32 | D8: =D$5*20*LOG(ABS(C8)) -> 120.4119983
A9: 1 | B9: =(D$3/D$4)*(A9/D$4) -> 1.5234375 | C9: =SIN($D$4*PI()*$B9/D$3)/SIN(PI()*$B9/D$3) -> 31.9486707 | D9: =D$5*20*LOG(ABS(C9)) -> 120.3562234
A10: 2 | B10: =(D$3/D$4)*(A10/D$4) -> 3.046875 | C10: 31.79497875 | D10: 120.1886831
A11: 3 | B11: 4.5703125 | C11: 31.53981002 | D11: 119.9087258
A12: 4 | B12: 6.09375 | C12: 31.18463419 | D12: 119.5152523
A13: 5 | B13: 7.6171875 | C13: 30.73149471 | D13: 119.0066947
A14: 6 | B14: 9.140625 | C14: 30.1829948 | D14: 118.3809863
A15: 7 | B15: 10.6640625 | C15: 29.54227962 | D15: 117.6355204
A16: 8 | B16: 12.1875 | C16: 28.81301482 | D16: 116.7670962
A17: 9 | B17: 13.7109375 | C17: 27.99936148 | D17: 115.7718502
A18: 10 | B18: 15.234375 | C18: 27.10594776 | D18: 114.6451678
A19: 11 | B19: 16.7578125 | C19: 26.13783742 | D19: 113.3815722
A20: 12 | B20: 18.28125 | C20: 25.10049546 | D20: 111.9745835
A21: 13 | B21: 19.8046875 | C21: 23.99975105 | D21: 110.4165389
A22: 14 | B22: 21.328125 | C22: 22.84175815 | D22: 108.6983623
A23: 15 | B23: 22.8515625 | C23: 21.63295408 | D23: 106.8092663
A24: 16 | B24: 24.375 | C24: 20.38001625 | D24: 104.7363621
A25: 17 | B25: 25.8984375 | C25: 19.08981747 | D25: 102.4641421
A26: 18 | B26: 27.421875 | C26: 17.76938017 | D26: 99.97378232
A27: 19 | B27: 28.9453125 | C27: 16.42582978 | D27: 97.24218543
A28: 20 | B28: 30.46875 | C28: 15.06634767 | D28: 94.2406388
A29: 21 | B29: 31.9921875 | C29: 13.69812404 | D29: 90.93288756
A30: 22 | B30: 33.515625 | C30: 12.32831095 | D30: 87.27228639
A31: 23 | B31: 35.0390625 | C31: 10.96397604 | D31: 83.19744622
A32: 24 | B32: 36.5625 | C32: 9.612057037 | D32: 78.62530713
A33: 25 | B33: 38.0859375 | C33: 8.279317599 | D33: 73.43956342
A34: 26 | B34: 39.609375 | C34: 6.972304653 | D34: 67.47010842
A35: 27 | B35: 41.1328125 | C35: 5.697307585 | D35: 60.45357334
A36: 28 | B36: 42.65625 | C36: 4.460319582 | D36: 51.94927817
A37: 29 | B37: 44.1796875 | C37: 3.267001361 | D37: 41.13194524
A38: 30 | B38: 45.703125 | C38: 2.122647557 | D38: 26.15023122
A39: 31 | B39: 47.2265625 | C39: 1.032155988 | D39: 1.09962691
